{"text_format":"1","workbook":"xlsx","n_sheets":1,"sheets":["Pressupost Projecte Cb"],"not_rendered":{"charts":0,"images":2,"macros":1,"external_links":0,"defined_names":5,"comments":1,"pivot_tables":0},"unopened":[],"bounds":{"document_bytes":16777216,"sheet_cells":100000,"rows_first":2000,"rows_last":500,"rows_between":2000,"halvings":0,"cell_chars":16384,"cell_head_chars":4096},"cells_cut":0,"cells_raw":0,"read":"whole","date_system":"1900"}

{"sheet":"Pressupost Projecte Cb","index":0,"n_rows":186,"n_cols":6,"rows_kept":186,"cut":false,"hidden":false,"merged":[]}
[null,null,null,null,null,"Documento básico 3"]
[null,null,null,null,null,"Ámbito temático \"C\": Comunicación - Investigación"]
[null,null,null,null,null,"Modalidad \"b\":Acciones de investigación aplicada y sistematización de prácticas, para  ser replicadas por"]
["Subvencions de l'Ajuntament de Barcelona per a",null,null,null,null," entidades, empresas y proyectos de economía socialy que sean relevantes para la transformación social."]
["la promoció i reforç de l'economia social i solidària 2019",null,null,null,null,"Se deben rellenar las celdas en blanco, y añadir filas en caso que sea necesario."]
[null,null,null,null,null,"Consultar anotaciones a pie de página antes de completar los datos."]
[]
["DATOS BÁSICOS"]
["Nombre de la persona jurídica/física",null,null,null,null,"  "]
["NIF de la persona jurídica/física"]
["Denominación del proyecto"]
["Importe total del proyecto"]
["Importe imputable a la subvención municipal"]
["% de l’Importe solicitado a la subvención municipal a cambiar en REC (Recurs Econòmic Ciutadà) "]
["Importe de l'aportació / Cofinanciación de la entidad"]
["% de l'Importe solicitado respecto al total del proyecto",{"$f":"B13/B12","v":{"$error":"#DIV/0!"}}]
["Fecha de inicio del proyecto subvencionado (dd/mm/aaaa)"]
["Fecha de fin del proyecto subvencionado (dd/mm/aaaa)"]
[]
["PREVISIÓN DE GASTOS DEL PROYECTO"]
[]
["Partidas","Importe total del proyecto","Importe imputable a la subvención municipal","Importe de l'aportació / Cofinanciación de la entidad"]
["D.1  Nóminas y seguridad social IRPF (régimen general o régimen de autónomos) del personal propio vinculado al proyecto.",{"$f":"SUM(DespesesProjecte[[#This Row],[Importe imputable a la subvención municipal]]+DespesesProjecte[[#This Row],[Importe de l''aportació / Cofinanciación de la entidad]])","v":0},{"$f":"SUM(C24:C28)","v":0},{"$f":"SUM(D24:D28)","v":0}]
[]
[]
[]
[]
[]
["D.2 Rendimientos anuals netos del empresario/a individual (ver 13.2 bases)",{"$f":"SUM(DespesesProjecte[[#This Row],[Importe imputable a la subvención municipal]]+DespesesProjecte[[#This Row],[Importe de l''aportació / Cofinanciación de la entidad]])","v":0},{"$f":"SUM(C30:C35)","v":0},{"$f":"SUM(D30:D35)","v":0}]
[]
[]
[]
[]
[]
[]
["D.3  Trabajos realizados por profesionales y empresas externas directamente vinculados al proyecto",{"$f":"SUM(DespesesProjecte[[#This Row],[Importe imputable a la subvención municipal]]+DespesesProjecte[[#This Row],[Importe de l''aportació / Cofinanciación de la entidad]])","v":0},{"$f":"SUM(C37:C41)","v":0},{"$f":"SUM(D37:D41)","v":0}]
[]
[]
[]
[]
[]
["D.4 Alquiler de bienes muebles/inmuebles directamente vinculados al proyecto.",{"$f":"SUM(DespesesProjecte[[#This Row],[Importe imputable a la subvención municipal]]+DespesesProjecte[[#This Row],[Importe de l''aportació / Cofinanciación de la entidad]])","v":0},{"$f":"SUM(C43:C47)","v":0},{"$f":"SUM(D43:D47)","v":0}]
[]
[]
[]
[]
[]
["D.5 Adquisición de materiales y bienes consumibles íntegramente imputables al proyecto.",{"$f":"SUM(DespesesProjecte[[#This Row],[Importe imputable a la subvención municipal]]+DespesesProjecte[[#This Row],[Importe de l''aportació / Cofinanciación de la entidad]])","v":0},{"$f":"SUM(C49:C53)","v":0},{"$f":"SUM(D49:D53)","v":0}]
[]
[]
[]
[]
[]
["D.6 Transporte – mensajería imputables al proyecto",{"$f":"SUM(DespesesProjecte[[#This Row],[Importe imputable a la subvención municipal]]+DespesesProjecte[[#This Row],[Importe de l''aportació / Cofinanciación de la entidad]])","v":0},{"$f":"SUM(C55:C59)","v":0},{"$f":"SUM(D55:D59)","v":0}]
[]
[]
[]
[]
[]
["D.7 Publicidad y propaganda de las actividades vinculadas al proyecto.",{"$f":"SUM(DespesesProjecte[[#This Row],[Importe imputable a la subvención municipal]]+DespesesProjecte[[#This Row],[Importe de l''aportació / Cofinanciación de la entidad]])","v":0},{"$f":"SUM(C61:C65)","v":0},{"$f":"SUM(D61:D65)","v":0}]
[]
[]
[]
[]
[]
["D.8  Alojamiento y dietas, del personal contratado y voluntarios.",{"$f":"SUM(DespesesProjecte[[#This Row],[Importe imputable a la subvención municipal]]+DespesesProjecte[[#This Row],[Importe de l''aportació / Cofinanciación de la entidad]])","v":0},{"$f":"SUM(C67:C71)","v":0},{"$f":"SUM(D67:D71)","v":0}]
[]
[]
[]
[]
[]
["D.9  Ayudas al transporte para los/las participantes de los proyectos en caso que sea necesario, de manera justificada.",{"$f":"SUM(DespesesProjecte[[#This Row],[Importe imputable a la subvención municipal]]+DespesesProjecte[[#This Row],[Importe de l''aportació / Cofinanciación de la entidad]])","v":0},{"$f":"SUM(C73:C77)","v":0},{"$f":"SUM(D73:D77)","v":0}]
[]
[]
[]
[]
[]
["D.10  Viajes y desplazamientos imputables a las actividades del proyecto.",{"$f":"SUM(DespesesProjecte[[#This Row],[Importe imputable a la subvención municipal]]+DespesesProjecte[[#This Row],[Importe de l''aportació / Cofinanciación de la entidad]])","v":0},{"$f":"SUM(C79:C83)","v":0},{"$f":"SUM(D79:D83)","v":0}]
[]
[]
[]
[]
[]
["D.11 Tributos, cuando sean abonados directamente por la persona jurídica o física beneficiaria.",{"$f":"SUM(DespesesProjecte[[#This Row],[Importe imputable a la subvención municipal]]+DespesesProjecte[[#This Row],[Importe de l''aportació / Cofinanciación de la entidad]])","v":0},{"$f":"SUM(C85:C89)","v":0},{"$f":"SUM(D85:D89)","v":0}]
[]
[]
[]
[]
[]
["D.12  Gastos del informe de auditoria, cuando sea obligatoria su presentación por el importe de la subvención. ",{"$f":"SUM(DespesesProjecte[[#This Row],[Importe imputable a la subvención municipal]]+DespesesProjecte[[#This Row],[Importe de l''aportació / Cofinanciación de la entidad]])","v":0},{"$f":"SUM(C91:C95)","v":0},{"$f":"SUM(D91:D95)","v":0}]
[]
[]
[]
[]
[]
["D.13  Otros gastos que de manera justificada y por la tipologia del proyecto puedan imputarse directamente al proyecto.",{"$f":"SUM(DespesesProjecte[[#This Row],[Importe imputable a la subvención municipal]]+DespesesProjecte[[#This Row],[Importe de l''aportació / Cofinanciación de la entidad]])","v":0},{"$f":"SUM(C97:C101)","v":0},{"$f":"SUM(D97:D101)","v":0}]
[]
[]
[]
[]
[]
["TOTAL GASTOS DIRECTOS (los que se identifican directamente con el proyecto)",{"$f":"SUM(B23,B29,B36,B42,B48,B54,B60,B66,B72,B78,B84,B90,B96)","v":0},{"$f":"SUM(C23,C29,C36,C42,C48,C54,C60,C66,C72,C78,C84,C90,C96)","v":0},{"$f":"SUM(D23,D29,D36,D42,D48,D54,D60,D66,D72,D78,D84,D90,D96)","v":0}]
["I.1 Personal de soporte al proyecto (Nóminas y seguridad social)",{"$f":"DespesesProjecte[[#This Row],[Importe imputable a la subvención municipal]]+DespesesProjecte[[#This Row],[Importe de l''aportació / Cofinanciación de la entidad]]","v":0},{"$f":"SUM(C104:C108)","v":0},{"$f":"SUM(D104:D108)","v":0}]
[]
[]
[]
[]
[]
["I.2  Seguros",{"$f":"DespesesProjecte[[#This Row],[Importe imputable a la subvención municipal]]+DespesesProjecte[[#This Row],[Importe de l''aportació / Cofinanciación de la entidad]]","v":0},{"$f":"SUM(C110:C114)","v":0},{"$f":"SUM(D110:D114)","v":0}]
[]
[]
[]
[]
[]
["I.3  Amortitzación",{"$f":"DespesesProjecte[[#This Row],[Importe imputable a la subvención municipal]]+DespesesProjecte[[#This Row],[Importe de l''aportació / Cofinanciación de la entidad]]","v":0},{"$f":"SUM(C116:C120)","v":0},{"$f":"SUM(D116:D120)","v":0}]
[]
[]
[]
[]
[]
["I.4  Alquiler de bienes inmuebles",{"$f":"DespesesProjecte[[#This Row],[Importe imputable a la subvención municipal]]+DespesesProjecte[[#This Row],[Importe de l''aportació / Cofinanciación de la entidad]]","v":0},{"$f":"SUM(C122:C126)","v":0},{"$f":"SUM(D122:D126)","v":0}]
[]
[]
[]
[]
[]
["I.5  Adquisición  de materiales y bienes consumibles parcialmente imputables al proyecto",{"$f":"DespesesProjecte[[#This Row],[Importe imputable a la subvención municipal]]+DespesesProjecte[[#This Row],[Importe de l''aportació / Cofinanciación de la entidad]]","v":0},{"$f":"SUM(C128:C132)","v":0},{"$f":"SUM(D128:D132)","v":0}]
[]
[]
[]
[]
[]
["I.6  Mantenimiento de edificios i/o instalaciones",{"$f":"DespesesProjecte[[#This Row],[Importe imputable a la subvención municipal]]+DespesesProjecte[[#This Row],[Importe de l''aportació / Cofinanciación de la entidad]]","v":0},{"$f":"SUM(C134:C138)","v":0},{"$f":"SUM(D134:D138)","v":0}]
[]
[]
[]
[]
[]
["I.7  Comunicaciones (teléfono, correos, conexión a internet)",{"$f":"DespesesProjecte[[#This Row],[Importe imputable a la subvención municipal]]+DespesesProjecte[[#This Row],[Importe de l''aportació / Cofinanciación de la entidad]]","v":0},{"$f":"SUM(C140:C144)","v":0},{"$f":"SUM(D140:D144)","v":0}]
[]
[]
[]
[]
[]
["I.8  Gastos financieros",{"$f":"DespesesProjecte[[#This Row],[Importe imputable a la subvención municipal]]+DespesesProjecte[[#This Row],[Importe de l''aportació / Cofinanciación de la entidad]]","v":0},{"$f":"SUM(C146:C150)","v":0},{"$f":"SUM(D146:D150)","v":0}]
[]
[]
[]
[]
[]
["I.9  Suministros",{"$f":"DespesesProjecte[[#This Row],[Importe imputable a la subvención municipal]]+DespesesProjecte[[#This Row],[Importe de l''aportació / Cofinanciación de la entidad]]","v":0},{"$f":"SUM(C152:C156)","v":0},{"$f":"SUM(D152:D156)","v":0}]
[]
[]
[]
[]
[]
["I.10   Trabajos realizados por otras empresas, parcialmente imputables a al proyecto (limpieza, seguridad...)",{"$f":"DespesesProjecte[[#This Row],[Importe imputable a la subvención municipal]]+DespesesProjecte[[#This Row],[Importe de l''aportació / Cofinanciación de la entidad]]","v":0},{"$f":"SUM(C158:C162)","v":0},{"$f":"SUM(D158:D162)","v":0}]
[]
[]
[]
[]
[]
["TOTAL GASTOS INDIRECTOS (se podran asignar al proyecto haciendo uso de un porcentaje de asignación) - Máximo 10% del importe imputable a la subvención municipal",{"$f":"SUM(B103,B109,B115,B121,B127,B133,B139,B145,B151,B157)","v":0},{"$f":"SUM(C103,C109,C115,C121,C127,C133,C139,C145,C151,C157)","v":0},{"$f":"SUM(D103,D109,D115,D121,D127,D133,D139,D145,D151,D157)","v":0}]
["TOTAL DE GASTOS PREVISTOS",{"$f":"SUM(B102,B163)","v":0},{"$f":"SUM(C102,C163)","v":0},{"$f":"SUM(D102,D163)","v":0}]
[]
[]
["1.  La cuantía de la subvención otorgada no superará el 80% del gasto total del proyecto a subvencionar. "]
["2.  El importe máximo de subvención para la modalidad \"b\" del ámbito temático de Comunicación - Investigación (Cb) es de 15.000 €."]
["3.  En caso que la solicitud presentada sobrepase el importe máximo, se considerará como importe solicitado el máximo de lo establecido en la convocatoria. "]
["4.  Los gastos indirectos imputados al proyecto detallados no podrán superar el 10 % del importe de la subvención."]
["*  Sólo con carácter excepcional, los/as empresarios/arias individuales que no tienen personas trabajadores en plantilla"]
["     podrán acreditar los trabajos mediante una declaración responsable acompañada de las declaraciones IRPF (modelo 130) del ejercicio corriente. "]
["     El precio/hora imputado al proyecto subvencionado no podrá superar la cantidad resultante de dividir los rendimeintos anuales netos del empresario/aria individual por 1800."]
["5.  El carácter subvencionable del gasto de amortización estará sujeto a las condiciones siguientes:"]
["- Que las subvenciones no hayan contribuidio a la compra de bienes."]
["- Que la amortitzación se calcula de conformidad con las normas de compatibilidad generalmente aceptadas. "]
["- Que el coste se refiera al periodo subvencionable."]
["6. En ningún caso se considerarán gastos subvencionables:"]
["- Los impuestos indirectos cuando sean susceptibles de recuperación o compensación, ni los impuestos sobre la renta. "]
["- Los gastos de inversión, incluidas las adquisiciones de bienes muebles. "]
["- Los gastos realizados con fecha anterior al inicio del proyecto y fecha posterior a la fecha de finalización del proyecto. "]
["- Otros gastos Que se indiquen en la convocatoria."]
["7.  Entre la resolución provisional y definitiva se acreditará la constitución de la cooperativa o sociedad laboral,"]
["      y se acredite la presentación de los documentos de inscripción en el registro correspondiente y el alta censal."]
["8.  Cuando algún gasto sea superior a 12.000€ sin IVA, en el caso de prestaciones de servicios o libramiento de bienes, y para aquellos gastos de más de 30.000 €, sin IVA, en el caso "]
["      de ejecución de obras, tendrán que incorporar tres presupuestos solicitados, y argumentar el motivo de la adjudicación, en el caso de no ser la propuesta más ventajosa económicamente."]